Workbook

Sheet Anexo I - BO
A3: MUNICÍPIO DE SANTO ANTONIO DO ARACANGUÁ
A4: RELATÓRIO RESUMIDO DA EXECUÇÃO ORÇAMENTÁRIA
A5: BALANÇO ORÇAMENTÁRIO
A6: ORÇAMENTOS FISCAL E DA SEGURIDADE SOCIAL
A7: PERÍODO:- Janeiro a Agosto de 2012 - BIMESTRE:- Julho - Agosto
A9: RREO - Anexo I (LRF, Art. 52, inciso I, alíneas "a" e "b" do inciso II e §1º) | J9: 1
B10: PREVISÃO | C10: PREVISÃO | D10: RECEITAS REALIZADAS | J10: SALDO A
A11: RECEITAS | B11: INICIAL | C11: ATUALIZADA | D11: No Bimestre | F11: % | G11: Até o Bimestre | I11: % | J11: REALIZAR
C12: (a) | D12: (b) | F12: (b/a) | G12: (c) | I12: (c/a) | J12: (a-c)
A13: RECEITAS (EXCETO INTRA-ORÇAMENTÁRIAS) (I) | B13: =B14+B50 -> 31500000 | C13: =C14+C50 -> 34764371.75 | D13: =D14+D50 -> 6754207.8 | F13: =D13/C13 -> 0.1942853404 | G13: =G14+G50 -> 21998558.85 | I13: =G13/C13 -> 0.6327903466 | J13: =C13-G13 -> 12765812.9
A14: RECEITAS CORRENTES | B14: =B15+B19+B22+B28+B32+B36+B37+B45 -> 31450000 | C14: =C15+C19+C22+C28+C32+C36+C37+C45 -> 31974078.47 | D14: =D15+D19+D22+D28+D32+D36+D37+D45 -> 5514251.67 | F14: 0.1724600656 | G14: =G15+G19+G22+G28+G32+G36+G37+G45 -> 20561034.59 | I14: 0.6430532348 | J14: 11413043.88
A15: RECEITA TRIBUTÁRIA | B15: =B16+B17+B18 -> 2310000 | C15: =C16+C17+C18 -> 2310000 | D15: =D16+D17+D18 -> 608159.23 | F15: 0.2632723939 | G15: =G16+G17+G18 -> 1138247.32 | I15: 0.4927477576 | J15: 1171752.68
A16: Impostos | B16: 2225000 | C16: 2225000 | D16: 566840.55 | F16: 0.2547597978 | G16: 1069437.22 | I16: 0.4806459416 | J16: 1155562.78
A17: Taxas | B17: 85000 | C17: 85000 | D17: 41318.68 | F17: 0.4861021176 | G17: 68810.1 | I17: 0.8095305882 | J17: 16189.9
A18: Contribuição de Melhoria | B18: 0 | C18: 0 | D18: 0 | G18: 0 | J18: 0
A19: RECEITA DE CONTRIBUIÇÕES | B19: =B20+B21 -> 0 | C19: =C20+C21 -> 0 | D19: =D20+D21 -> 0 | G19: =G20+G21 -> 0 | J19: 0
A20: Contribuições Sociais | B20: 0 | C20: 0 | D20: 0 | G20: 0 | J20: 0
A21: Contribuições Econômicas | B21: 0 | C21: 0 | D21: 0 | G21: 0 | J21: 0
A22: RECEITA PATRIMONIAL | B22: =B23+B24+B25+B26+B27 -> 237000 | C22: =C23+C24+C25+C26+C27 -> 237000 | D22: =D23+D24+D25+D26+D27 -> 16666.02 | F22: 0.07032075949 | G22: =G23+G24+G25+G26+G27 -> 91749.16 | I22: 0.3871272574 | J22: 145250.84
A23: Receitas Imobiliárias | B23: 0 | C23: 0 | D23: 0 | G23: 0 | J23: 0
A24: Receitas de Valores Mobiliários | B24: 227000 | C24: 227000 | D24: 15427.02 | F24: 0.06796044053 | G24: 87734.16 | I24: 0.3864940969 | J24: 139265.84
A25: Receita de Concessões e Permissões | B25: 0 | C25: 0 | D25: 0 | G25: 0 | J25: 0
A26: Compensações Financeiras | B26: 0 | C26: 0 | D26: 0 | G26: 0 | J26: 0
A27: Outras Receitas Patrimoniais | B27: 10000 | C27: 10000 | D27: 1239 | F27: 0.1239 | G27: 4015 | I27: 0.4015 | J27: 5985
A28: RECEITA AGROPECUÁRIA | B28: =B29+B30+B31 -> 0 | C28: =C29+C30+C31 -> 0 | D28: =D29+D30+D31 -> 0 | G28: =G29+G30+G31 -> 0 | J28: 0
A29: Receita da Produção Vegetal | B29: 0 | C29: 0 | D29: 0 | G29: 0 | J29: 0
A30: Receita da Produção Animal e Derivados | B30: 0 | C30: 0 | D30: 0 | G30: 0 | J30: 0
A31: Outras Receitas Agropecuárias | B31: 0 | C31: 0 | D31: 0 | G31: 0 | J31: 0
A32: RECEITA INDUSTRIAL | B32: =B33+B34+B35 -> 0 | C32: 0 | D32: =D33+D34+D35 -> 0 | G32: =G33+G34+G35 -> 0 | J32: 0
A33: Receita da Indústria de Transformação | B33: 0 | C33: 0 | D33: 0 | G33: 0 | J33: 0
A34: Receita da Indústria de Construção | B34: 0 | C34: 0 | D34: 0 | G34: 0 | J34: 0
A35: Outras Receitas Industriais | B35: 0 | C35: 0 | D35: 0 | G35: 0 | J35: 0
A36: RECEITA DE SERVIÇOS | B36: 378000 | C36: 378000 | D36: 29329.04 | F36: 0.07759005291 | G36: 106571 | I36: 0.2819338624 | J36: 271429
A37: TRANSFERÊNCIAS CORRENTES | B37: =B38+B39+B40+B41+B42+B43+B44 -> 28043000 | C37: =C38+C39+C40+C41+C42+C43+C44 -> 28567078.47 | D37: =D38+D39+D40+D41+D42+D43+D44 -> 4776393.77 | F37: 0.1671992386 | G37: =G38+G39+G40+G41+G42+G43+G44 -> 18952667.28 | I37: 0.6634443666 | J37: 9614411.19
A38: Transferências Intergovernamentais | B38: 32689000 | C38: 33213078.47 | D38: 5625211.63 | F38: 0.1693673664 | G38: 22092422.22 | I38: 0.665172373 | J38: 11120656.25
A39: Transferências Intergovernamentais - deduções | B39: -4868000 | C39: -4868000 | D39: -786745.27 | F39: 0.1616157087 | G39: -3275850.94 | I39: 0.6729356902 | J39: -1592149.06
A40: Transferências de Instituições Privadas | B40: 5000 | C40: 5000 | D40: 0 | F40: 0 | G40: 0 | I40: 0 | J40: 5000
A41: Transferências do Exterior | B41: 0 | C41: 0 | D41: 0 | G41: 0 | J41: 0
A42: Transferências de Pessoas | B42: 0 | C42: 0 | D42: 0 | G42: 0 | J42: 0
A43: Transferências de Convênios | B43: 217000 | C43: 217000 | D43: -62072.59 | F43: -0.2860488018 | G43: 136096 | I43: 0.6271705069 | J43: 80904
A44: Transferências para o Combate à Fome | B44: 0 | C44: 0 | D44: 0 | G44: 0 | J44: 0
A45: OUTRAS RECEITAS CORRENTES | B45: =B46+B47+B48+B49 -> 482000 | C45: =C46+C47+C48+C49 -> 482000 | D45: =D46+D47+D48+D49 -> 83703.61 | F45: 0.1736589419 | G45: =G46+G47+G48+G49 -> 271799.83 | I45: 0.5639000622 | J45: 210200.17
A46: Multas e Juros de Mora | B46: 128000 | C46: 128000 | D46: 12786.82 | F46: 0.09989703125 | G46: 50481.46 | I46: 0.3943864062 | J46: 77518.54
A47: Indenizações e Restituições | B47: 35000 | C47: 35000 | D47: 0 | F47: =D47/C47 -> 0 | G47: 251.46 | I47: =G47/C47 -> 0.007184571429 | J47: =C47-G47 -> 34748.54
A48: Receita da Dívida Ativa | B48: 319000 | C48: 319000 | D48: 70846.79 | F48: 0.2220902508 | G48: 220905.91 | I48: 0.6924950157 | J48: 98094.09
A49: Receitas Correntes Diversas | B49: 0 | C49: 0 | D49: 70 | G49: 161 | J49: -161
A50: RECEITAS DE CAPITAL | B50: =B51+B54+B57+B58+B66 -> 50000 | C50: =C51+C54+C57+C58+C66 -> 2790293.28 | D50: =D51+D54+D57+D58+D66 -> 1239956.13 | F50: 0.4443820078 | G50: =G51+G54+G57+G58+G66 -> 1437524.26 | I50: 0.5151875146 | J50: 1352769.02
A51: OPERAÇÕES DE CRÉDITO | B51: =B52+B53 -> 0 | C51: =C52+C53 -> 0 | D51: =D52+D53 -> 0 | G51: =G52+G53 -> 0 | J51: 0
A52: Operações de Crédito Internas | B52: 0 | C52: 0 | D52: 0 | G52: 0 | J52: 0
A53: Operações de Crédito Externas | B53: 0 | C53: 0 | D53: 0 | G53: 0 | J53: 0
A54: ALIENAÇÃO DE BENS | B54: =B55+B56 -> 0 | C54: =C55+C56 -> 103000 | D54: =D55+D56 -> 102730 | F54: 0.9973786408 | G54: =G55+G56 -> 102730 | I54: 0.9973786408 | J54: 270
A55: Alienação de Bens Móveis | B55: 0 | C55: 103000 | D55: 102730 | F55: 0.9973786408 | G55: 102730 | I55: 0.9973786408 | J55: 270
A56: Alienação de Bens Imóveis | B56: 0 | C56: 0 | D56: 0 | G56: 0 | J56: 0
A57: AMORTIZAÇÕES DE EMPRÉSTIMOS | B57: 50000 | C57: 50000 | D57: 10420.48 | F57: 0.2084096 | G57: 38151.22 | I57: 0.7630244 | J57: 11848.78
A58: TRANSFERÊNCIAS DE CAPITAL | B58: =B59+B60+B61+B62+B63+B64+B65 -> 0 | C58: =C59+C60+C61+C62+C63+C64+C65 -> 2637293.28 | D58: =D59+D60+D61+D62+D63+D64+D65 -> 1126805.65 | F58: 0.4272583783 | G58: =G59+G60+G61+G62+G63+G64+G65 -> 1296643.04 | I58: 0.4916567489 | J58: 1340650.24
A59: Transferências Intergovernamentais | B59: 0 | C59: 0 | D59: 0 | G59: 0 | J59: 0
A60: Transferências de Instituições Privadas | B60: 0 | C60: 0 | D60: 0 | G60: 0 | J60: 0
A61: Transferências do Exterior | B61: 0 | C61: 0 | D61: 0 | G61: 0 | J61: 0
A62: Transferências de Pessoas | B62: 0 | C62: 0 | D62: 0 | G62: 0 | J62: 0
A63: Transferências de Outras Instituições Públicas | B63: 0 | C63: 0 | D63: 0 | G63: 0 | J63: 0
A64: Transferências de Convênios | B64: 0 | C64: 2637293.28 | D64: 1126805.65 | F64: 0.4272583783 | G64: 1296643.04 | I64: 0.4916567489 | J64: 1340650.24
A65: Transferências para o Combate à Fome | B65: 0 | C65: 0 | D65: 0 | G65: 0 | J65: 0
A66: OUTRAS RECEITAS DE CAPITAL | B66: =B67+B68+B69 -> 0 | C66: =C67+C68+C69 -> 0 | D66: =D67+D68+D69 -> 0 | G66: =G67+G68+G69 -> 0 | J66: 0
A67: Integralização do Capital Social | B67: 0 | C67: 0 | D67: 0 | G67: 0 | J67: 0
A68: Dív. Atv. Prov. da Amortiz. de Emp. e Financ. | B68: 0 | C68: 0 | D68: 0 | G68: 0 | J68: 0
A69: Receitas de Capital Diversas | B69: 0 | C69: 0 | D69: 0 | G69: 0 | J69: 0
A70: RECEITAS (INTRA-ORÇAMENTÁRIAS) (II) | B70: 0 | C70: 0 | D70: 0 | G70: 0 | J70: 0
A71: SUBTOTAL DAS RECEITAS (III) = (I + II) | B71: =B13+B70 -> 31500000 | C71: =C13+C70 -> 34764371.75 | D71: =D13+D70 -> 6754207.8 | F71: 0.1942853404 | G71: =G13+G70 -> 21998558.85 | I71: 0.6327903466 | J71: 12765812.9
A72: OPERAÇÕES DE CRÉDITO / REFINANCIAMENTO (IV) | D72: =D73+D76 -> 0 | G72: =G73+G76 -> 0 | J72: 0
A73: Operações de Crédito Internas | B73: 0 | C73: 0 | D73: =D74+D75 -> 0 | G73: =G74+G75 -> 0 | J73: 0
A74: Mobiliária | B74: 0 | C74: 0 | D74: 0 | G74: 0 | J74: 0
A75: Contratual | B75: 0 | C75: 0 | D75: 0 | G75: 0 | J75: 0
A76: Operações de Crédito Externas | B76: 0 | C76: 0 | D76: =D77+D78 -> 0 | G76: =G77+G78 -> 0 | J76: 0
A77: Mobiliária | B77: 0 | C77: 0 | D77: 0 | G77: 0 | J77: 0
A78: Contratual | B78: 0 | C78: 0 | D78: 0 | G78: 0 | J78: 0
A79: SUBTOTAL COM REFINANCIAMENTO (V) = (III + IV) | B79: =B71+B72 -> 31500000 | C79: =C71+C72 -> 34764371.75 | D79: =D71+D72 -> 6754207.8 | F79: 0.1942853404 | G79: =G71+G72 -> 21998558.85 | I79: 0.6327903466 | J79: 12765812.9
A80: DÉFICIT (VI) | B80: 0 | C80: 0 | G80: 0 | J80: 0
A81: TOTAL (VII) = (V + VI) | B81: =B79+B80 -> 31500000 | C81: =C79+C80 -> 34764371.75 | D81: =D79+D80 -> 6754207.8 | F81: 0.1942853404 | G81: =G79+G80 -> 21998558.85 | I81: 0.6327903466 | J81: 12765812.9
A82: SALDOS DE EXERCÍCIOS ANTERIORES (UTILIZADOS PARA CRÉDITOS ADICIONAIS) | B82: 0 | C82: 0 | D82: - | F82: – | G82: - | I82: – | J82: -
A83: Superávit Financeiro | B83: 0 | C83: 1017188.16 | D83: – | F83: – | G83: - | I83: – | J83: –
A84: Reabertura de Créditos Adicionais | B84: 0 | C84: 0 | D84: – | F84: – | G84: - | I84: – | J84: –
B86: DOTAÇÃO | C86: CRÉDITOS | D86: DOTAÇÃO | E86: DESPESAS EMPENHADAS | G86: DESPESAS LIQUIDADAS | J86: SALDO A
A87: DESPESAS | B87: INICIAL | C87: ADICIONAIS | D87: ATUALIZADA | E87: No Bimestre | F87: Até o Bimestre | G87: No Bimestre | H87: Até o Bimestre | I87: % | J87: LIQUIDAR
B88: (d) | C88: (e) | D88: (f)=(d+e) | H88: (g) | I88: (g/f) | J88: (f-g)
A89: DESPESAS (EXCETO INTRA-ORÇAMENTÁRIAS) (VIII) | B89: =B90+B94+B98+B99 -> 31500000 | C89: =D89-B89 -> 4236262.45 | D89: =D90+D94+D98+D99 -> 35736262.45 | E89: =E90+E94 -> 4678577.65 | F89: =F90+F94 -> 27684014.04 | G89: =G90+G94 -> 5543388.12 | H89: =H90+H94 -> 21777195.09 | I89: =H89/D89 -> 0.6093864774 | J89: =D89-H89 -> 13959067.36
A90: DESPESAS CORRENTES | B90: =B91+B92+B93 -> 29012000 | C90: 1138400 | D90: =D91+D92+D93 -> 30150400 | E90: =E91+E92+E93 -> 4008095.9 | F90: =F91+F92+F93 -> 23048056.02 | G90: =G91+G92+G93 -> 5130466.66 | H90: =H91+H92+H93 -> 20276736.03 | I90: 0.6725196359 | J90: 9873663.97
A91: PESSOAL E ENCARGOS SOCIAIS | B91: 16748000 | C91: 201400 | D91: 16949400 | E91: 2969879.21 | F91: 11568678.37 | G91: 2969879.21 | H91: 11568678.37 | I91: 0.6825420587 | J91: 5380721.63
A92: JUROS E ENCARGOS DA DÍVIDA | B92: 0 | C92: 0 | D92: 0 | E92: 0 | F92: 0 | G92: 0 | H92: 0 | J92: 0
A93: OUTRAS DESPESAS CORRENTES | B93: 12264000 | C93: 937000 | D93: 13201000 | E93: 1038216.69 | F93: 11479377.65 | G93: 2160587.45 | H93: 8708057.66 | I93: 0.6596513643 | J93: 4492942.34
A94: DESPESAS DE CAPITAL | B94: =B95+B96+B97 -> 2338000 | C94: 3247862.45 | D94: =D95+D96+D97 -> 5585862.45 | E94: =E95+E96+E97 -> 670481.75 | F94: =F95+F96+F97 -> 4635958.02 | G94: =G95+G96+G97 -> 412921.46 | H94: =H95+H96+H97 -> 1500459.06 | I94: 0.2686172589 | J94: 4085403.39
A95: INVESTIMENTOS | B95: 2078000 | C95: 3367862.45 | D95: 5445862.45 | E95: 656732.27 | F95: 4551450.37 | G95: 399171.98 | H95: 1415951.41 | I95: 0.2600049897 | J95: 4029911.04
A96: INVERSÕES FINANCEIRAS | B96: 10000 | C96: 0 | D96: 10000 | E96: 0 | F96: 0 | G96: 0 | H96: 0 | I96: 0 | J96: 10000
A97: AMORTIZAÇÃO DA DÍVIDA | B97: 250000 | C97: -120000 | D97: 130000 | E97: 13749.48 | F97: 84507.65 | G97: 13749.48 | H97: 84507.65 | I97: 0.6500588462 | J97: 45492.35
A98: RESERVA DE CONTINGÊNCIA | B98: 150000 | C98: -150000 | D98: 0 | E98: 0 | F98: 0 | G98: 0 | H98: 0 | J98: 0
A99: RESERVA DO RPPS | B99: 0 | C99: 0 | D99: 0 | E99: 0 | F99: 0 | G99: 0 | H99: 0 | J99: 0
A100: DESPESAS (INTRA-ORÇAMENTÁRIAS) (IX) | B100: 0 | C100: 0 | D100: 0 | E100: 0 | F100: 0 | G100: 0 | H100: 0 | J100: 0
A101: SUBTOTAL DAS DESPESAS (X) = (VIII + IX) | B101: =B89+B100 -> 31500000 | C101: 4236262.45 | D101: =D89+D100 -> 35736262.45 | E101: =E89+E98+E99+E100 -> 4678577.65 | F101: =F89+F98+F99+F100 -> 27684014.04 | G101: =G89+G98+G99+G100 -> 5543388.12 | H101: =H89+H98+H99+H100 -> 21777195.09 | I101: 0.6093864774 | J101: 13959067.36
A102: AMORTIZAÇÃO DA DÍV. / REFINANCIAMENTO (XI) | D102: =D103+D106 -> 0 | E102: =E103+E106 -> 0 | F102: =F103+F106 -> 0 | G102: =G103+G106 -> 0 | H102: =H103+H106 -> 0
A103: Amortização da Dívida Interna | B103: 0 | C103: =D103-B103 -> 0 | D103: =D104+D105 -> 0 | E103: =E104+E105 -> 0 | F103: =F104+F105 -> 0 | G103: =G104+G105 -> 0 | H103: =H104+H105 -> 0 | I103: =H103/D103 ->  | J103: =D103-H103 -> 0
A104: Dívida Mobiliária | B104: 0 | C104: 0 | D104: 0 | E104: 0 | F104: 0 | G104: 0 | H104: 0 | J104: 0
A105: Outras Dívidas | B105: 0 | C105: 0 | D105: 0 | E105: 0 | F105: 0 | G105: 0 | H105: 0 | J105: 0
A106: Amortização da Dívida Externa | B106: 0 | C106: 0 | D106: =D107+D108 -> 0 | E106: =E107+E108 -> 0 | F106: =F107+F108 -> 0 | G106: =G107+G108 -> 0 | H106: =H107+H108 -> 0 | J106: 0
A107: Dívida Mobiliária | B107: 0 | C107: 0 | D107: 0 | E107: 0 | F107: 0 | G107: 0 | H107: 0 | J107: 0
A108: Outras Dívidas | B108: 0 | C108: 0 | D108: 0 | E108: 0 | F108: 0 | G108: 0 | H108: 0 | J108: 0
A109: SUBTOTAL C/ REFINANCIAMENTO (XII) = (X + XI) | B109: =B101+B102 -> 31500000 | C109: 4236262.45 | D109: =D101+D102 -> 35736262.45 | E109: =E101+E102 -> 4678577.65 | F109: =F101+F102 -> 27684014.04 | G109: =G101+G102 -> 5543388.12 | H109: =H101+H102 -> 21777195.09 | I109: 0.6093864774 | J109: 13959067.36
A110: SUPERÁVIT (XIII) | B110: – | C110: – | D110: – | E110: – | F110: – | G110: – | H110: =G81-H109 -> 221363.76 | I110: – | J110: –
A111: TOTAL (XIV) = (XII + XIII) | B111: =B109 -> 31500000 | C111: 4236262.45 | D111: =D109 -> 35736262.45 | E111: =E109 -> 4678577.65 | F111: =F109 -> 27684014.04 | G111: =SUM(G109:G110) -> 5543388.12 | H111: =SUM(H109:H110) -> 21998558.85 | I111: – | J111: =SUM(J109:J110) -> 13959067.36
A112: FONTE:
A113: Departamento de Finanças
A115: LUIZ CARLOS DOS REIS NONATO | D115: CESAR ROBERTO TOQUETON | H115: MISLENE NAGATE ALVES
A116: Prefeito Municipal | D116: Contabilista - CRC 1SP164476/O-7 | H116: Responsável pelo Controle Interno

Sheet Anexo II - Função
A3: MUNICÍPIO DE SANTO ANTONIO DO ARACANGUÁ
A4: RELATÓRIO RESUMIDO DA EXECUÇÃO ORÇAMENTÁRIA
A5: DEMONSTRATIVO DA EXECUÇÃO DAS DESPESAS POR FUNÇÃO/SUBFUNÇÃO
A6: ORÇAMENTOS FISCAL E DA SEGURIDADE SOCIAL
A7: PERÍODO:- Janeiro a Agosto de 2012 - BIMESTRE:- Julho - Agosto
A9: RREO - Anexo II (LRF, Art. 52, inciso II, alínea "c") | J9: 1
B10: DOTAÇÃO | C10: DOTAÇÃO | D10: DESPESAS EMPENHADAS | F10: DESPESAS LIQUIDADAS | J10: SALDO A
A11: FUNÇÃO/SUBFUNÇÃO | B11: INICIAL | C11: ATUALIZADA | D11: No Bimestre | E11: Até o Bimestre | F11: No Bimestre | G11: Até o Bimestre | H11: % | I11: % | J11: LIQUIDAR
C12: (a) | G12: (b) | H12: (b/total b) | I12: (b/a) | J12: (a-b)
A13: DESPESAS (EXCETO INTRA-ORÇAMENTÁRIAS) (I) | B13: =B15+B18+B24+B30+B33+B41+B44+B53+B56+B60+B63+B67+B70+B73+B76+B79+B82+B86+B90 -> 31500000 | C13: =C15+C18+C24+C30+C33+C41+C44+C53+C56+C60+C63+C67+C70+C73+C76+C79+C82+C86+C90 -> 35736262.45 | D13: =D15+D18+D24+D30+D33+D41+D44+D53+D56+D60+D63+D67+D70+D73+D76+D79+D82+D86+D90 -> 4678577.65 | E13: =E15+E18+E24+E30+E33+E41+E44+E53+E56+E60+E63+E67+E70+E73+E76+E79+E82+E86+E90 -> 27684014.04 | F13: =F15+F18+F24+F30+F33+F41+F44+F53+F56+F60+F63+F67+F70+F73+F76+F79+F82+F86+F90 -> 5543388.12 | G13: =G15+G18+G24+G30+G33+G41+G44+G53+G56+G60+G63+G67+G70+G73+G76+G79+G82+G86+G90 -> 21777195.09 | H13: =G13/G94 -> 1 | I13: =G13/C13 -> 0.6093864774 | J13: =C13-G13 -> 13959067.36
A15: LEGISLATIVA | B15: =B16 -> 1200000 | C15: 1200000 | D15: 243034.29 | E15: 740420.03 | F15: 216518.89 | G15: 668272.66 | H15: =G15/G94 -> 0.03068681055 | I15: =G15/C15 -> 0.5568938833 | J15: =C15-G15 -> 531727.34
A16: Ação Legislativa | B16: 1200000 | C16: 1200000 | D16: 243034.29 | E16: 740420.03 | F16: 216518.89 | G16: 668272.66 | H16: =G16/G94 -> 0.03068681055 | I16: =G16/C16 -> 0.5568938833 | J16: =C16-G16 -> 531727.34
A18: ADMINISTRAÇÃO | B18: =B19+B20+B21+B22 -> 4223000 | C18: 4284100 | D18: 510073.66 | E18: 2983356.22 | F18: 632133.65 | G18: 2692855.27 | H18: =G18/G94 -> 0.123654826 | I18: =G18/C18 -> 0.6285696576 | J18: =C18-G18 -> 1591244.73
A19: Planejamento e Orçamento | B19: 118000 | C19: 128000 | D19: 10698.6 | E19: 69840.38 | F19: 15817.6 | G19: 65260.38 | H19: =G19/G94 -> 0.002996730283 | I19: =G19/C19 -> 0.5098467187 | J19: =C19-G19 -> 62739.62
A20: Administração Geral | B20: 3298000 | C20: 3353000 | D20: 413290.08 | E20: 2430527.97 | F20: 513466.75 | G20: 2177269.06 | H20: =G20/G94 -> 0.09997931556 | I20: =G20/C20 -> 0.6493495556 | J20: =C20-G20 -> 1175730.94
A21: Administração Financeira | B21: 694000 | C21: 694000 | D21: 69370.37 | E21: 398723.72 | F21: 86134.69 | G21: 366061.68 | H21: =G21/G94 -> 0.01680940445 | I21: =G21/C21 -> 0.5274663977 | J21: =C21-G21 -> 327938.32
A22: Comunicação Social | B22: 113000 | C22: 109100 | D22: 16714.61 | E22: 84264.15 | F22: 16714.61 | G22: 84264.15 | H22: =G22/G94 -> 0.003869375723 | I22: =G22/C22 -> 0.7723570119 | J22: =C22-G22 -> 24835.85
A24: ASSISTÊNCIA SOCIAL | B24: =B25+B26+B27+B28 -> 1599000 | C24: 1717000 | D24: 211463.06 | E24: 1488712.85 | F24: 297767.79 | G24: 1198523.71 | H24: =G24/G94 -> 0.05503572453 | I24: =G24/C24 -> 0.6980336109 | J24: =C24-G24 -> 518476.29
A25: Assistência ao Idoso | B25: 35000 | C25: 20200 | D25: 4635.8 | E25: 18431.2 | F25: 4635.8 | G25: 18431.2 | H25: =G25/G94 -> 0.0008463532573 | I25: =G25/C25 -> 0.9124356436 | J25: =C25-G25 -> 1768.8
A26: Assistência ao Portador de Deficiência | B26: 0 | C26: 0 | D26: 0 | E26: 0 | F26: 0 | G26: 0 | H26: =G26/G94 -> 0 | I26: =G26/C26 ->  | J26: =C26-G26 -> 0
A27: Assistência à Criança e ao Adolescente | B27: 140000 | C27: 131500 | D27: 13312.22 | E27: 58676.74 | F27: 14037.23 | G27: 58531.23 | H27: =G27/G94 -> 0.002687730434 | I27: =G27/C27 -> 0.4451044106 | J27: =C27-G27 -> 72968.77
A28: Assistência Comunitária | B28: 1424000 | C28: 1565300 | D28: 193515.04 | E28: 1411604.91 | F28: 279094.76 | G28: 1121561.28 | H28: =G28/G94 -> 0.05150164084 | I28: =G28/C28 -> 0.7165152239 | J28: =C28-G28 -> 443738.72
A30: PREVIDÊNCIA SOCIAL | B30: =B31 -> 150000 | C30: 125000 | D30: 20205.58 | E30: 76446.82 | F30: 20205.58 | G30: 76446.82 | H30: =G30/G94 -> 0.003510407088 | I30: =G30/C30 -> 0.61157456 | J30: =C30-G30 -> 48553.18
A31: Previdência do Regime Estatutário | B31: 150000 | C31: 125000 | D31: 20205.58 | E31: 76446.82 | F31: 20205.58 | G31: 76446.82 | H31: =G31/G94 -> 0.003510407088 | I31: =G31/C31 -> 0.61157456 | J31: =C31-G31 -> 48553.18
A33: SAÚDE | B33: =B34+B35+B36+B37+B38+B39 -> 6834000 | C33: 7217200 | D33: 1105187.89 | E33: 5739833.56 | F33: 1369342.49 | G33: 5250048.27 | H33: =G33/G94 -> 0.2410800954 | I33: =G33/C33 -> 0.727435608 | J33: =C33-G33 -> 1967151.73
A34: Atenção Básica | B34: 6539000 | C34: 6733700 | D34: 1115057.89 | E34: 5333577.32 | F34: 1307670.07 | G34: 4961607.97 | H34: =G34/G94 -> 0.2278350334 | I34: 0.7368323463 | J34: 1772092.03
A35: Assistência Hospitalar e Ambulatorial | B35: 212000 | C35: 372000 | D35: 0 | E35: 300000 | F35: 50000 | G35: 225000 | H35: =G35/G94 -> 0.01033190909 | I35: 0.6048387097 | J35: 147000
A36: Suporte Profilático e Terapêutico | B36: 48000 | C36: 77100 | D36: -9870 | E36: 72756.24 | F36: 11672.42 | G36: 29940.3 | H36: =G36/G94 -> 0.001374846479 | I36: 0.3883307393 | J36: 47159.7
A37: Vigilância Sanitária | B37: 35000 | C37: 34400 | D37: 0 | E37: 33500 | F37: 0 | G37: 33500 | H37: =G37/G94 -> 0.001538306465 | I37: 0.9738372093 | J37: 900
A38: Vigilância Epidemiológica | B38: 0 | C38: 0 | D38: 0 | E38: 0 | F38: 0 | G38: 0 | H38: =G38/G94 -> 0 | J38: 0
A39: Alimentação e Nutrição | B39: 0 | C39: 0 | D39: 0 | E39: 0 | F39: 0 | G39: 0 | H39: =G39/G94 -> 0 | J39: 0
A41: TRABALHO | B41: =B42 -> 20000 | C41: 14000 | D41: 296 | E41: 2126 | F41: 296 | G41: 2126 | H41: =G41/G94 -> 9.762506104e-05 | I41: =G41/C41 -> 0.1518571429 | J41: =C41-G41 -> 11874
A42: Fomento ao Trabalho | B42: 20000 | C42: 14000 | D42: 296 | E42: 2126 | F42: 296 | G42: 2126 | H42: =G42/G94 -> 9.762506104e-05 | I42: =G42/C42 -> 0.1518571429 | J42: =C42-G42 -> 11874
A44: EDUCAÇÃO | B44: =B45+B46+B47+B48+B49+B50+B51 -> 8802000 | C44: 11711902.45 | D44: 1578680.68 | E44: 9250634.53 | F44: 1567339.44 | G44: 5685597.65 | H44: =G44/G94 -> 0.261080347 | I44: =G44/C44 -> 0.4854546624 | J44: =C44-G44 -> 6026304.8
A45: Ensino Fundamental | B45: 5636000 | C45: 5693900 | D45: 770670.79 | E45: 4025125.45 | F45: 924161.35 | G45: 3510399.78 | H45: =G45/G94 -> 0.1611961396 | I45: 0.6165193944 | J45: 2183500.22
A46: Ensino Médio | B46: 355000 | C46: 698300 | D46: 0 | E46: 646662.96 | F46: 94008.58 | G46: 231642.25 | H46: =G46/G94 -> 0.01063691853 | I46: 0.3317231133 | J46: 466657.75
A47: Ensino Profissional | B47: 46000 | C47: 43100 | D47: 2652.7 | E47: 23606.81 | F47: 2652.7 | G47: 23606.81 | H47: =G47/G94 -> 0.001084015177 | I47: 0.5477218097 | J47: 19493.19
A48: Ensino Superior | B48: 614000 | C48: 554000 | D48: -60100.2 | E48: 515725.7 | F48: 62831 | G48: 266618.61 | H48: =G48/G94 -> 0.01224301885 | I48: 0.4812610289 | J48: 287381.39
A49: Educação Infantil | B49: 1571000 | C49: 3454845.88 | D49: 290160.71 | E49: 2887878.15 | F49: 391446.8 | G49: 1270250.67 | H49: =G49/G94 -> 0.05832939755 | I49: 0.3676721666 | J49: 2184595.21
A50: Educação Especial | B50: 50000 | C50: 50000 | D50: 0 | E50: 46800 | F50: 9360 | G50: 32760 | H50: =G50/G93 ->  | I50: =G50/C50 -> 0.6552 | J50: =C50-G50 -> 17240
A51: Educação Básica | B51: 530000 | C51: 1217756.57 | D51: 575296.68 | E51: 1104835.46 | F51: 82879.01 | G51: 350319.53 | H51: =G51/G94 -> 0.01608653128 | I51: 0.2876761568 | J51: 867437.04
A53: CULTURA | B53: =B54 -> 170000 | C53: 125000 | D53: 11535.35 | E53: 89162.31 | F53: 17721.95 | G53: 69778.07 | H53: =G53/G94 -> 0.003204180782 | I53: =G53/C53 -> 0.55822456 | J53: =C53-G53 -> 55221.93
A54: Difusão Cultural | B54: 170000 | C54: 125000 | D54: 11535.35 | E54: 89162.31 | F54: 17721.95 | G54: 69778.07 | H54: =G54/G94 -> 0.003204180782 | I54: =G54/C54 -> 0.55822456 | J54: =C54-G54 -> 55221.93
A56: URBANISMO | B56: =B57+B58 -> 3234000 | C56: 3863260 | D56: 395882.02 | E56: 3104211.75 | F56: 675463.02 | G56: 2237110.94 | H56: =G56/G94 -> 0.1027272305 | I56: =G56/C56 -> 0.5790733577 | J56: =C56-G56 -> 1626149.06
A57: Infra-Estrutura Urbana | B57: 420000 | C57: 653560 | D57: 0 | E57: 635895.18 | F57: 0 | G57: 14902.34 | H57: =G57/G94 -> 0.0006843094319 | I57: =G57/C57 -> 0.02280179326 | J57: =C57-G57 -> 638657.66
A58: Serviços Urbanos | B58: 2814000 | C58: 3209700 | D58: 395882.02 | E58: 2468316.57 | F58: 675463.02 | G58: 2222208.6 | H58: =G58/G94 -> 0.1020429211 | I58: =G58/C58 -> 0.6923415272 | J58: =C58-G58 -> 987491.4
A60: HABITAÇÃO | B60: =B61 -> 0 | C60: 0 | D60: 0 | E60: 0 | F60: 0 | G60: 0 | H60: =G60/G94 -> 0 | I60: =G60/C60 ->  | J60: =C60-G60 -> 0
A61: Habitação Urbana | B61: 0 | C61: 0 | D61: 0 | E61: 0 | F61: 0 | G61: 0 | H61: =G61/G94 -> 0 | I61: =G61/C61 ->  | J61: =C61-G61 -> 0
A63: SANEAMENTO | B63: =B64+B65 -> 445000 | C63: =C64+C65 -> 878000 | D63: =D64+D65 -> 84644.65 | E63: =E64+E65 -> 363414.02 | F63: =F64+F65 -> 63644.5 | G63: =G64+G65 -> 315068.94 | H63: =G63/G101 ->  | I63: =G63/C63 -> 0.358848451 | J63: =C63-G63 -> 562931.06
A64: Serviços Urbanos | B64: 0 | C64: 393000 | D64: 0 | E64: 0 | F64: 0 | G64: 0 | H64: =G64/G101 ->  | I64: =G64/C64 -> 0 | J64: =C64-G64 -> 393000
A65: Saneamento Básico Urbano | B65: 445000 | C65: 485000 | D65: 84644.65 | E65: 363414.02 | F65: 63644.5 | G65: 315068.94 | H65: =G65/G102 ->  | I65: =G65/C65 -> 0.6496266804 | J65: =C65-G65 -> 169931.06
A67: GESTÃO AMBIENTAL | B67: =B68 -> 50000 | C67: 10000 | D67: 0 | E67: 0 | F67: 0 | G67: 0 | H67: =G67/G101 ->  | I67: =G67/C67 -> 0 | J67: =C67-G67 -> 10000
A68: Recuperação de Áreas Degradadas | B68: 50000 | C68: 10000 | D68: 0 | E68: 0 | F68: 0 | G68: 0 | H68: =G68/G101 ->  | I68: =G68/C68 -> 0 | J68: =C68-G68 -> 10000
A70: AGRICULTURA | B70: =B71 -> 730000 | C70: 837000 | D70: 73855.09 | E70: 595750.24 | F70: 110196.85 | G70: 572157.13 | H70: =G70/G94 -> 0.02627322424 | I70: =G70/C70 -> 0.6835808005 | J70: =C70-G70 -> 264842.87
A71: Extensão Rural | B71: 730000 | C71: 837000 | D71: 73855.09 | E71: 595750.24 | F71: 110196.85 | G71: 572157.13 | H71: =G71/G94 -> 0.02627322424 | I71: =G71/C71 -> 0.6835808005 | J71: =C71-G71 -> 264842.87
A73: INDÚSTRIA | B73: =B74 -> 0 | C73: 0 | D73: 0 | E73: 0 | F73: 0 | G73: 0 | H73: =G73/G97 ->  | I73: =G73/C73 ->  | J73: =C73-G73 -> 0
A74: Promoção Industrial | B74: 0 | C74: 0 | D74: 0 | E74: 0 | F74: 0 | G74: 0 | H74: =G74/G97 ->  | I74: =G74/C74 ->  | J74: =C74-G74 -> 0
A76: COMÉRCIO E SERVIÇOS | B76: =B77 -> 112000 | C76: 2200 | D76: 0 | E76: 0 | F76: 0 | G76: 0 | H76: =G76/G94 -> 0 | I76: =G76/C76 -> 0 | J76: =C76-G76 -> 2200
A77: Turismo | B77: 112000 | C77: 2200 | D77: 0 | E77: 0 | F77: 0 | G77: 0 | H77: =G77/G94 -> 0 | I77: =G77/C77 -> 0 | J77: =C77-G77 -> 2200
A79: TRANSPORTE | B79: =B80 -> 2085000 | C79: 2049600 | D79: 166990.24 | E79: 1836080.19 | F79: 351486.78 | G79: 1668822.07 | H79: =G79/G94 -> 0.07663163521 | I79: =G79/C79 -> 0.8142184182 | J79: =C79-G79 -> 380777.93
A80: Transporte Rodoviário | B80: 2085000 | C80: 2049600 | D80: 166990.24 | E80: 1836080.19 | F80: 351486.78 | G80: 1668822.07 | H80: =G80/G94 -> 0.07663163521 | I80: =G80/C80 -> 0.8142184182 | J80: =C80-G80 -> 380777.93
A82: DESPORTO E LAZER | B82: =B83+B84 -> 1131000 | C82: 1257000 | D82: 141891.78 | E82: 1064151.75 | F82: 143537.58 | G82: 1055473.95 | H82: =G82/G94 -> 0.04846693735 | I82: =G82/C82 -> 0.839676969 | J82: =C82-G82 -> 201526.05
A83: Desporto Comunitário | B83: 1131000 | C83: 1257000 | D83: 141891.78 | E83: 1064151.75 | F83: 143537.58 | G83: 1055473.95 | H83: =G83/G94 -> 0.04846693735 | I83: =G83/C83 -> 0.839676969 | J83: =C83-G83 -> 201526.05
A84: Lazer | B84: 0 | C84: 0 | D84: 0 | E84: 0 | F84: 0 | G84: 0 | H84: =G84/G94 -> 0 | I84: =G84/C84 ->  | J84: =C84-G84 -> 0
A86: ENCARGOS ESPECIAIS | B86: =B87+B88 -> 565000 | C86: 445000 | D86: 134837.36 | E86: 349713.77 | F86: 77733.6 | G86: 284913.61 | H86: =G86/G94 -> 0.01308311786 | I86: =G86/C86 -> 0.6402553034 | J86: =C86-G86 -> 160086.39
A87: Serviço da Dívida Interna | B87: 250000 | C87: 130000 | D87: 13749.48 | E87: 84507.65 | F87: 13749.48 | G87: 84507.65 | H87: =G87/G94 -> 0.003880557145 | I87: =G87/C87 -> 0.6500588462 | J87: =C87-G87 -> 45492.35
A88: Outros Encargos Especiais | B88: 315000 | C88: 315000 | D88: 121087.88 | E88: 265206.12 | F88: 63984.12 | G88: 200405.96 | H88: =G88/G94 -> 0.009202560714 | I88: =G88/C88 -> 0.6362093968 | J88: =C88-G88 -> 114594.04
A90: RESERVA DE CONTINGÊNCIA | B90: =B91 -> 150000 | C90: 0 | D90: 0 | E90: 0 | F90: 0 | G90: 0 | H90: =G90/G94 -> 0 | I90: =G90/C90 ->  | J90: =C90-G90 -> 0
A91: Reserva de Contingência | B91: 150000 | C91: 0 | D91: 0 | E91: 0 | F91: 0 | G91: 0 | H91: =G91/G94 -> 0 | I91: =G91/C91 ->  | J91: =C91-G91 -> 0
A93: DESPESAS (INTRA-ORÇAMENTÁRIAS) (II) | B93: 0 | C93: 0 | D93: 0 | E93: 0 | F93: 0 | G93: 0 | H93: - | I93: =G93/C93 ->  | J93: =C93-G93 -> 0
A94: TOTAL (III) = (I + II) | B94: =B13+B93 -> 31500000 | C94: =C13+C93 -> 35736262.45 | D94: =D13+D93 -> 4678577.65 | E94: =E13+E93 -> 27684014.04 | F94: =F13+F93 -> 5543388.12 | G94: =G13+G93 -> 21777195.09 | H94: - | I94: =G94/C94 -> 0.6093864774 | J94: =C94-G94 -> 13959067.36
A95: FONTE:
A96: Departamento de Finanças
A99: LUIZ CARLOS DOS REIS NONATO | C99: CESAR ROBERTO TOQUETON | F99: MISLENE NAGATE ALVES
A100: Prefeito Municipal | C100: Contabilista - CRC 1SP164476/O-7 | F100: Responsável pelo Controle Interno

Sheet Anexo III - RCL
A3: MUNICÍPIO DE SANTO ANTONIO DO ARACANGUÁ
A4: RELATÓRIO RESUMIDO DA EXECUÇÃO ORÇAMENTÁRIA
A5: DEMONSTRATIVO DA RECEITA CORRENTE LÍQUIDA
A6: ORÇAMENTOS FISCAL E DA SEGURIDADE SOCIAL
A7: PERÍODO:- Setembro de 2011 a Agosto de 2012 - BIMESTRE:- Julho - Agosto
A9: RREO - Anexo III (LRF, Art. 53, inciso I) | O9: 1
B10: EVOLUÇÃO DA RECEITA REALIZADA NOS ÚLTIMOS 12 MESES | N10: TOTAL | O10: PREVISÃO
A11: ESPECIFICAÇÃO | N11: (ÚLTIMOS | O11: ATUALIZADA
B12: 2011-09-01 | C12: 2011-10-01 | D12: 2011-11-01 | E12: 2011-12-01 | F12: 2012-01-01 | G12: 2012-02-01 | H12: 2012-03-01 | I12: 2012-04-01 | J12: 2012-05-01 | K12: 2012-06-01 | L12: 2012-07-01 | M12: 2012-08-01 | N12: 12 MESES) | O12: <EXERCÍCIO>
A13: RECEITAS CORRENTES (I)
A14: Receita Tributária | B14: =B15+B16+B17+B18+B19 -> 253757.75 | C14: 176404.13 | D14: 236617.2 | E14: 218309.6 | F14: 96152.38 | G14: 65485.52 | H14: 99533.1 | I14: 66515.32 | J14: 75167.55 | K14: 127234.22 | L14: =L15+L16+L17+L18+L19 -> 435401.22 | M14: 172758.01 | N14: =SUM(B14:M14) -> 2023336 | O14: =O15+O16+O17+O18+O19 -> 2310000
A15: IPTU | B15: 29809.89 | C15: 25671.07 | D15: 26801.55 | E15: 33479.48 | F15: 0 | G15: 23.61 | H15: 0 | I15: 0 | J15: 0 | K15: 32149.78 | L15: 215516.63 | M15: 37927.14 | N15: 401379.15 | O15: 815000
A16: ISS | B16: 189533.03 | C16: 93658.34 | D16: 121847.37 | E16: 136736.13 | F16: 22378.62 | G16: 20885.6 | H16: 40058.42 | I16: 31384.73 | J16: 39793.07 | K16: 47235.7 | L16: 23867.59 | M16: 67332.47 | N16: 834711.07 | O16: 800000
A17: ITBI | B17: 6760.12 | C17: 32020.74 | D17: 59771.49 | E17: 12741.85 | F17: 46493.08 | G17: 18043.25 | H17: 27827.2 | I17: 688 | J17: 1117.06 | K17: 216.39 | L17: 133852.7 | M17: 31727.13 | N17: 371259.01 | O17: 300000
A18: IRRF | B18: 22507.4 | C18: 21091.98 | D18: 24716.1 | E18: 30068.16 | F18: 25319.12 | G18: 24170.72 | H18: 28287 | I18: 32572.65 | J18: 31155.4 | K18: 32797.27 | L18: 27169.17 | M18: 29447.72 | N18: 329302.69 | O18: 310000
A19: Outras Receitas Tributárias | B19: 5147.31 | C19: 3962 | D19: 3480.69 | E19: 5283.98 | F19: 1961.56 | G19: 2362.34 | H19: 3360.48 | I19: 1869.94 | J19: 3102.02 | K19: 14835.08 | L19: 34995.13 | M19: 6323.55 | N19: 86684.08 | O19: 85000
A20: Receita de Contribuições | B20: 0 | C20: 0 | D20: 0 | E20: 0 | F20: 0 | G20: 0 | H20: 0 | I20: 0 | J20: 0 | K20: 0 | L20: 0 | M20: 0 | N20: 0 | O20: 0
A21: Receita Patrimonial | B21: 23187.17 | C21: 25046.26 | D21: 23990.74 | E21: 11649.14 | F21: 15311.93 | G21: 15731.14 | H21: 161234.58 | I21: -132781.46 | J21: 8498.04 | K21: 7088.91 | L21: 7633.03 | M21: 9032.99 | N21: 175622.47 | O21: 237000
A22: Receita Agropecuária | B22: 0 | C22: 0 | D22: 0 | E22: 0 | F22: 0 | G22: 0 | H22: 0 | I22: 0 | J22: 0 | K22: 0 | L22: 0 | M22: 0 | N22: 0 | O22: 0
A23: Receita Industrial | B23: 0 | C23: 0 | D23: 0 | E23: 0 | F23: 0 | G23: 0 | H23: 0 | I23: 0 | J23: 0 | K23: 0 | L23: 0 | M23: 0 | N23: 0 | O23: 0
A24: Receita de Serviços | B24: 19938.49 | C24: 12179.82 | D24: 15719.82 | E24: 23762.24 | F24: 8293.36 | G24: 10729.13 | H24: 16470.81 | I24: 11666.57 | J24: 15638.48 | K24: 14443.61 | L24: 13545.84 | M24: 15783.2 | N24: 178171.37 | O24: 378000
A25: Transferências Correntes | B25: =B26+B27+B28+B29+B30+B31+B32+B33 -> 2186334.41 | C25: 3029448.28 | D25: 2616869.88 | E25: 3198459.91 | F25: 3184066.58 | G25: 2359394.81 | H25: 3008017.7 | I25: 2654877.27 | J25: 2787963.78 | K25: 2671059.04 | L25: =L26+L27+L28+L29+L30+L31+L32+L33 -> 2879865.59 | M25: 2683273.45 | N25: 33259630.7 | O25: =O26+O27+O28+O29+O30+O31+O32+O33 -> 32911000
A26: COTA-PARTE DO F.P.M. | B26: 328097.17 | C26: 431260.55 | D26: 455643.3 | E26: 766237.9 | F26: 481715.34 | G26: 582707.89 | H26: 395751.72 | I26: 498776.96 | J26: 557846.74 | K26: 476037.92 | L26: 355489.2 | M26: 392274.87 | N26: 5721839.56 | O26: 6200000
A27: COTA-PARTE DO I.C.M.S. | B27: 1303251.49 | C27: 1393443.67 | D27: 1525931.04 | E27: 1635534.05 | F27: 1609420.98 | G27: 1193674.99 | H27: 1482539.5 | I27: 1361032.13 | J27: 1646977.65 | K27: 1443353.19 | L27: 1751551.37 | M27: 1347247.66 | N27: 17693957.72 | O27: 17000000
A28: COTA-PARTE DO I.P.V.A. | B28: 39857.51 | C28: 9442.61 | D28: 13334.77 | E28: 21637.72 | F28: 146002.51 | G28: 88785.11 | H28: 91753.99 | I28: 109176.98 | J28: 13176.58 | K28: 18682.19 | L28: 16840.94 | M28: 25086.73 | N28: 593777.64 | O28: 500000
A29: COTA-PARTE DO I.T.R. | B29: 12294.98 | C29: 422448.34 | D29: 55462.85 | E29: 56881.48 | F29: 42645.42 | G29: 3198.74 | H29: 0 | I29: 279.02 | J29: 871.37 | K29: 0 | L29: 2386.19 | M29: 805.82 | N29: 597274.21 | O29: 400000
A30: TRANSFERÊNCIAS DA LC 87/1996 | B30: 8511.36 | C30: 8511.36 | D30: 8511.36 | E30: 10936.03 | F30: 8675.36 | G30: 8675.36 | H30: 8675.36 | I30: 8675.36 | J30: 8675.36 | K30: 0 | L30: 8675.36 | M30: 8675.36 | N30: 97197.63 | O30: 120000
A31: TRANSFERÊNCIAS DA LC 61/1989 | B31: 10377.77 | C31: 13447.71 | D31: 15987.45 | E31: 33957.07 | F31: 5142.6 | G31: 14437.85 | H31: 10797.03 | I31: 11760.68 | J31: 13355.45 | K31: 11645.05 | L31: 11828.27 | M31: 12862.67 | N31: 165599.6 | O31: 120000
A32: TRANSFERÊNCIAS DO FUNDEB | B32: 283512.3 | C32: 306208.33 | D32: 334103.4 | E32: 337105.38 | F32: 526230.17 | G32: 331339.38 | H32: 386885.39 | I32: 325142.05 | J32: 382705.51 | K32: 336430.25 | L32: 390660.35 | M32: 309025.4 | N32: 4249347.91 | O32: 4000000
A33: OUTRAS TRANSFÊRENCIAS CORRENTES | B33: 200431.83 | C33: 444685.71 | D33: 207895.71 | E33: 336170.28 | F33: 364234.2 | G33: 136575.49 | H33: 631614.71 | I33: 340034.09 | J33: 164355.12 | K33: 384910.44 | L33: 342433.91 | M33: 587294.94 | N33: 4140636.43 | O33: 4571000
A34: Outras Receitas Correntes | B34: 37594.29 | C34: 38297.65 | D34: 27328.69 | E34: 38601.15 | F34: 29419.82 | G34: 24102.4 | H34: 34336.97 | I34: 19811.97 | J34: 34407.24 | K34: 46017.82 | L34: 58111.5 | M34: 25592.11 | N34: 413621.61 | O34: 482000
A35: TOTAL DAS RECEITAS | B35: =B14+B20+B21+B22+B23+B24+B25+B34 -> 2520812.11 | C35: =C14+C20+C21+C22+C23+C24+C25+C34 -> 3281376.14 | D35: =D14+D20+D21+D22+D23+D24+D25+D34 -> 2920526.33 | E35: =E14+E20+E21+E22+E23+E24+E25+E34 -> 3490782.04 | F35: =F14+F20+F21+F22+F23+F24+F25+F34 -> 3333244.07 | G35: 2475443 | H35: 3319593.16 | I35: 2620089.67 | J35: 2921675.09 | K35: 2865843.6 | L35: =L14+L20+L21+L22+L23+L24+L25+L34 -> 3394557.18 | M35: 2906439.76 | N35: =N14+N20+N21+N22+N23+N24+N25+N34 -> 36050382.15 | O35: 36318000
A36: DEDUÇÕES (II)
A37: Transferências Constitucionais e Legais | B37: 0 | C37: 0 | D37: 0 | E37: 0 | F37: 0 | G37: 0 | H37: 0 | I37: 0 | J37: 0 | K37: 0 | L37: 0 | M37: 0 | N37: =SUM(B37:M37) -> 0 | O37: 0
A38: Contrib. Empregadores e Trab. para Seg. Social | B38: 0 | C38: 0 | D38: 0 | E38: 0 | F38: 0 | G38: 0 | H38: 0 | I38: 0 | J38: 0 | K38: 0 | L38: 0 | M38: 0 | N38: 0 | O38: 0
A39: Contrib. para o Plano de Previdência do Servidor | B39: 0 | C39: 0 | D39: 0 | E39: 0 | F39: 0 | G39: 0 | H39: 0 | I39: 0 | J39: 0 | K39: 0 | L39: 0 | M39: 0 | N39: 0 | O39: 0
A40: Compensação Financ. entre Regimes Previdência | B40: 0 | C40: 0 | D40: 0 | E40: 0 | F40: 0 | G40: 0 | H40: 0 | I40: 0 | J40: 0 | K40: 0 | L40: 0 | M40: 0 | N40: 0 | O40: 0
A41: Dedução de Receita para Formação do FUNDEB | B41: 283512.3 | C41: 306208.33 | D41: 334103.4 | E41: 337105.38 | F41: 463110.99 | G41: 331339.38 | H41: 450004.57 | I41: 325142.05 | J41: 382705.51 | K41: 336430.25 | L41: 390660.35 | M41: 309025.4 | N41: 4249347.91 | O41: 4000000
A42: Contribuições para PIS/PASEP | B42: 0 | C42: 0 | D42: 0 | E42: 0 | F42: 0 | G42: 0 | H42: 0 | I42: 0 | J42: 0 | K42: 0 | L42: 0 | M42: 0 | N42: 0 | O42: 0
A43: Outras | B43: 0 | C43: 0 | D43: 0 | E43: 0 | F43: 0 | G43: 0 | H43: 0 | I43: 0 | J43: 0 | K43: 0 | L43: 0 | M43: 0 | N43: 0 | O43: 0
A44: TOTAL DAS DEDUÇÕES | D44: =SUM(D37:D43) -> 334103.4 | E44: 337105.38 | F44: 463110.99 | G44: 331339.38 | H44: 450004.57 | I44: 325142.05 | J44: 382705.51 | K44: 336430.25 | L44: =SUM(L37:L43) -> 390660.35 | M44: 309025.4 | N44: 4249347.91 | O44: 4000000
A45: RECEITA CORRENTE LÍQUIDA (III) = (I - II) | B45: =B35-B44 -> 2520812.11 | C45: 3281376.14 | D45: 2586422.93 | E45: 3153676.66 | F45: 2870133.08 | G45: 2144103.62 | H45: 2869588.59 | I45: 2294947.62 | J45: 2538969.58 | K45: 2529413.35 | L45: 3003896.83 | M45: 2597414.36 | N45: =N14+N20+N21+N22+N23+N24+N25+N34-N37-N38-N39-N40-N41-N42-N43 -> 31801034.24 | O45: =O14+O20+O21+O22+O23+O24+O25+O34-O37-O38-O39-O40-O41-O42-O43 -> 32318000
A46: FONTE:
A47: Departamento de Finanças
A49: LUIZ CARLOS DOS REIS NONATO | E49: CESAR ROBERTO TOQUETON | J49: MISLENE NAGATE ALVES
A50: Prefeito Municipal | E50: Contabilista - CRC 1SP164476/O-7 | J50: Responsável pelo Controle Interno

Sheet Anexo V - RPPS
A3: MUNICÍPIO DE SANTO ANTONIO DO ARACANGUÁ
A4: RELATÓRIO RESUMIDO DA EXECUÇÃO ORÇAMENTÁRIA
A5: DEMONSTRATIVO DAS RECEITAS E DESPESAS PREVIDENCIÁRIAS DO REGIME PRÓPRIO DE PREVIDÊNCIA DOS SERVIDORES
A6: ORÇAMENTO DA SEGURIDADE SOCIAL
A7: PERÍODO:- Janeiro a Agosto de 2012 - BIMESTRE:- Julho - Agosto
A9: RREO - Anexo V (LRF, Art. 53, inciso II) | H9: 1
B10: PREVISÃO | C10: PREVISÃO | D10: RECEITAS REALIZADAS
A11: RECEITAS | B11: INICIAL | C11: ATUALIZADA | D11: No Bimestre | F11: Até o Bimestre/ | H11: Até o Bimestre/
F12: 2012 | H12: 2011
A13: RECEITAS PREVIDENCIÁRIAS - RPPS (EXCETO INTRA-ORÇAMENTÁRIAS) (I)
A14: RECEITAS CORRENTES | B14: 0 | C14: 0 | D14: 0 | F14: 0 | H14: 0
A15: Receita de Contribuições dos Segurados | B15: 0 | C15: 0 | D15: 0 | F15: 0 | H15: 0
A16: Pessoal Civil | B16: 0 | C16: 0 | D16: 0 | F16: 0 | H16: 0
A17: Ativo | B17: 0 | C17: 0 | D17: 0 | F17: 0 | H17: 0
A18: Inativo | B18: 0 | C18: 0 | D18: 0 | F18: 0 | H18: 0
A19: Pensionista | B19: 0 | C19: 0 | D19: 0 | F19: 0 | H19: 0
A20: Pessoal Militar | B20: 0 | C20: 0 | D20: 0 | F20: 0 | H20: 0
A21: Ativo | B21: 0 | C21: 0 | D21: 0 | F21: 0 | H21: 0
A22: Inativo | B22: 0 | C22: 0 | D22: 0 | F22: 0 | H22: 0
A23: Militar | B23: 0 | C23: 0 | D23: 0 | F23: 0 | H23: 0
A24: Outras Receitas de Contribuições | B24: 0 | C24: 0 | D24: 0 | F24: 0 | H24: 0
A25: Receita Patrimonial | B25: N A D A A D E C L A R A R
A26: Receitas Imobiliárias
A27: Receitas de Valores Mobiliários
A28: Outras Receitas Patrimoniais
A29: Receita de Serviços
A30: Outras Receitas Correntes | B30: 0 | C30: 0 | D30: 0 | F30: 0 | H30: 0
A31: Compensação Previdenciária do RGPS para o RPPS | B31: 0 | C31: 0 | D31: 0 | F31: 0 | H31: 0
A32: Demais Receitas Correntes | B32: 0 | C32: 0 | D32: 0 | F32: 0 | H32: 0
A33: RECEITAS DE CAPITAL | B33: 0 | C33: 0 | D33: 0 | F33: 0 | H33: 0
A34: Alienação de Bens, Direitos e Ativos | B34: 0 | C34: 0 | D34: 0 | F34: 0 | H34: 0
A35: Amortização de Empréstimos | B35: 0 | C35: 0 | D35: 0 | F35: 0 | H35: 0
A36: Outras Receitas de Capital | B36: 0 | C36: 0 | D36: 0 | F36: 0 | H36: 0
A37: (–) DEDUÇÕES DA RECEITA | B37: 0 | C37: 0 | D37: 0 | F37: 0 | H37: 0
A38: RECEITAS PREVIDENCIÁRIAS - RPPS (INTRA-ORÇAMENTÁRIAS) (II) | B38: 0 | C38: 0 | D38: 0 | F38: 0 | H38: 0
A39: TOTAL DAS RECEITAS PREVIDENCIÁRIAS RPPS - (III) = (I + II) | B39: 0 | C39: 0 | D39: 0 | F39: 0 | H39: 0
B41: DOTAÇÃO | C41: DOTAÇÃO | D41: DESPESAS LIQUIDADAS
A42: DESPESAS | B42: INICIAL | C42: ATUALIZADA | D42: No Bimestre | F42: Até o Bimestre/ | H42: Até o Bimestre/
F43: 2012 | H43: 2011
A44: DESPESAS PREVIDENCIÁRIAS - RPPS (EXCETO INTRA-ORÇAMENTÁRIAS) (IV) | B44: =B45+B48+B60 -> 0 | C44: =C45+C48+C60 -> 0 | D44: =D45+D48+D60 -> 0 | F44: =F45+F48+F60 -> 0 | H44: =H45+H48+H60 -> 0
A45: ADMINISTRAÇÃO | B45: 0 | C45: 0 | D45: =D46+D47 -> 0 | F45: =F46+F47 -> 0 | H45: =H46+H47 -> 0
A46: Despesas Correntes | B46: 0 | C46: 0 | D46: 0 | F46: 0 | H46: 0
A47: Despesas de Capital | B47: 0 | C47: 0 | D47: 0 | F47: 0 | H47: 0
A48: PREVIDÊNCIA | B48: =B49+B53+B57 -> 0 | C48: =C49+C53+C57 -> 0 | D48: =D49+D53+D57 -> 0 | F48: =F49+F53+F57 -> 0 | H48: =H49+H53+H57 -> 0
A49: Pessoal Civil | B49: =B50+B51+B52 -> 0 | C49: =C50+C51+C52 -> 0 | D49: =D50+D51+D52 -> 0 | F49: =F50+F51+F52 -> 0 | H49: =H50+H51+H52 -> 0
A50: Aposentadorias | B50: 0 | C50: 0 | D50: 0 | F50: 0 | H50: 0
A51: Pensões | B51: 0 | C51: 0 | D51: 0 | F51: 0 | H51: 0
A52: Outros Benefícios Previdenciários | B52: 0 | C52: 0 | D52: 0 | F52: 0 | H52: 0
A53: Pessoal Militar | B53: 0 | C53: 0 | D53: 0 | F53: 0 | H53: 0
A54: Reformas | B54: 0 | C54: 0 | D54: 0 | F54: 0 | H54: 0
A55: Pensões | B55: 0 | C55: 0 | D55: 0 | F55: 0 | H55: 0
A56: Outros Benefícios Previdenciários | B56: 0 | C56: 0 | D56: 0 | F56: 0 | H56: 0
A57: Outras Despesas Previdenciárias | B57: 0 | C57: 0 | D57: 0 | F57: 0 | H57: 0
A58: Compensação Previdenciária do RPPS para o RGPS | B58: 0 | C58: 0 | D58: 0 | F58: 0 | H58: 0
A59: Demais Despesas Previdenciárias | B59: 0 | C59: 0 | D59: 0 | F59: 0 | H59: 0
A60: DESPESAS PREVIDENCIÁRIAS - RPPS (INTRA-ORÇAMENTÁRIAS) (V) | B60: 0 | C60: 0 | D60: 0 | F60: 0 | H60: 0
A61: TOTAL DAS DESPESAS PREVIDENCIÁRIAS RPPS (VI) = (IV + V) | B61: =B44+B60 -> 0 | C61: =C44+C60 -> 0 | D61: =D44+D60 -> 0 | F61: =F44+F60 -> 0 | H61: =H44+H60 -> 0
A63: RESULTADO PREVIDENCIÁRIO (VII) = (III – VI) | B63: =B39-B61 -> 0 | C63: =C39-C61 -> 0 | D63: =D39-D61 -> 0 | F63: =F39-F61 -> 0
A65: APORTES DE RECURSOS PARA O REGIME PRÓPRIO DE PREVIDÊNCIA DO SERVIDOR | B65: PREVISÃO | C65: PREVISÃO | D65: RECEITAS REALIZADAS
B66: INICIAL | C66: ATUALIZADA | D66: No | F66: Até o Bimestre/ | H66: Até o Bimestre/
D67: Bimestre | F67: <Exercício> | H67: <Exercício Anterior>
A68: TOTAL DOS APORTES PARA O RPPS
A69: Plano Financeiro
A70: Recursos para Cobertura de Insuficiências Financeiras
A71: Recursos para Formação de Reserva
A72: Outros Aportes para o RPPS
A73: Plano Previdenciário
A74: Recursos para Cobertura de Déficit Financeiro
A75: Recursos para Cobertura de Déficit Atuarial
A76: Outros Aportes para o RPPS
A78: RESERVA ORÇAMENTÁRIA DO RPPS | D78: PREVISÃO ORÇAMENTÁRIA
A79: VALOR
A81: BENS E DIREITOS DO RPPS | B81: <MÊS ANTERIOR> | D81: PERÍODO DE REFERÊNCIA
D82: 2012 | G82: 2011
A83: CAIXA | B83: 0 | D83: 0
A84: BANCOS CONTA MOVIMENTO | B84: 0 | D84: 0
A85: INVESTIMENTOS | B85: 0 | D85: 0
A86: OUTROS BENS E DIREITOS | B86: 0 | D86: 0
B88: PREVISÃO | C88: PREVISÃO | D88: RECEITAS REALIZADAS
A89: RECEITAS INTRA-ORÇAMENTÁRIAS - RPPS | B89: INICIAL | C89: ATUALIZADA | D89: No Bimestre | F89: Até o Bimestre/ | H89: Até o Bimestre/
F90: 2012 | H90: 2011
A91: RECEITAS CORRENTES (VIII) | B91: =B92 -> 0 | C91: =C92 -> 0 | D91: 0 | F91: 0 | H91: 0
A92: Receita de Contribuições | B92: =B93+B102+B105+B106 -> 0 | C92: =C93+C102+C105+C106 -> 0 | D92: 0 | F92: 0 | H92: 0
A93: Patronal | B93: =B94+B98 -> 0 | C93: =C94+C98 -> 0 | D93: =D94+D98 -> 0 | F93: =F94+F98 -> 0 | H93: =H94+H98 -> 0
A94: Pessoal Civil | B94: =B95+B96+B97 -> 0 | C94: =C95+C96+C97 -> 0 | D94: =D95+D96+D97 -> 0 | F94: =F95+F96+F97 -> 0 | H94: =H95+H96+H97 -> 0
A95: Ativo | B95: 0 | C95: 0 | D95: 0 | F95: 0 | H95: 0
A96: Inativo | B96: 0 | C96: 0 | D96: 0 | F96: 0 | H96: 0
A97: Pensionista | B97: 0 | C97: 0 | D97: 0 | F97: 0 | H97: 0
A98: Pessoal Militar | B98: 0 | C98: 0 | D98: 0 | F98: 0 | H98: 0
A99: Ativo | B99: 0 | C99: 0 | D99: 0 | F99: 0 | H99: 0
A100: Inativo | B100: 0 | C100: 0 | D100: 0 | F100: 0 | H100: 0
A101: Militar | B101: 0 | C101: 0 | D101: 0 | F101: 0 | H101: 0
A102: Para Cobertura de Déficit Atuarial | B102: 0 | C102: 0 | D102: 0 | F102: 0 | H102: 0
A103: Em Regime de Débitos e Parcelamentos | B103: 0 | C103: 0 | D103: 0 | F103: 0 | H103: 0
A104: Receita Patrimonial | B104: 0 | C104: 0 | D104: 0 | F104: 0 | H104: 0
A105: Receita de Serviços | B105: 0 | C105: 0 | D105: 0 | F105: 0 | H105: 0
A106: Outras Receitas Correntes | B106: 0 | C106: 0 | D106: 0 | F106: 0 | H106: 0
A107: RECEITAS DE CAPITAL (IX) | B107: 0 | C107: 0 | D107: 0 | F107: 0 | H107: 0
A108: Alienação de Bens | B108: 0 | C108: 0 | D108: 0 | F108: 0 | H108: 0
A109: Amortização de Empréstimos | B109: 0 | C109: 0 | D109: 0 | F109: 0 | H109: 0
A110: Outras Receitas de Capital | B110: 0 | C110: 0 | D110: 0 | F110: 0 | H110: 0
A111: DEDUÇÕES DA RECEITA (X) | B111: 0 | C111: 0 | D111: 0 | F111: 0 | H111: 0
A112: TOTAL DAS RECEITAS PREVIDENCIÁRIAS INTRA-ORÇAMENTÁRIAS (XI) = (VIII + IX - X)
B114: DOTAÇÃO | C114: DOTAÇÃO | D114: DESPESAS LIQUIDADAS
A115: DESPESAS INTRA-ORÇAMENTÁRIAS - RPPS | B115: INICIAL | C115: ATUALIZADA | D115: No Bimestre | F115: Até o Bimestre/ | H115: Até o Bimestre/
F116: 2012 | H116: 2011
A117: ADMINISTRAÇÃO (XII) | B117: =B118+B119 -> 0 | C117: =C118+C119 -> 0 | D117: 0 | F117: 0 | H117: 0
A118: Despesas Correntes | B118: 0 | C118: 0 | D118: 0 | F118: 0 | H118: 0
A119: Despesas de Capital | B119: 0 | C119: 0 | D119: 0 | F119: 0 | H119: 0
A120: TOTAL DAS DESPESAS PREVIDENCIÁRIAS INTRA-ORÇAMENTÁRIAS (XIII) = (XII) | B120: =B117 -> 0 | C120: =C117 -> 0 | D120: 0 | F120: 0 | H120: 0
A121: FONTE:
A122: Departamento de Finanças
A125: LUIZ CARLOS DOS REIS NONATO | B125: CESAR ROBERTO TOQUETON | F125: MISLENE NAGATE ALVES
A126: Prefeito Municipal | B126: Contabilista - CRC 1SP164476/O-7 | F126: Responsável pelo Controle Interno

Sheet Anexo VI - Nominal
A3: MUNICÍPIO DE SANTO ANTONIO DO ARACANGUÁ
A4: RELATÓRIO RESUMIDO DA EXECUÇÃO ORÇAMENTÁRIA
A5: DEMONSTRATIVO DO RESULTADO NOMINAL
A6: ORÇAMENTOS FISCAL E DA SEGURIDADE SOCIAL
A7: PERÍODO:- Janeiro a Agosto de 2012 - BIMESTRE:- Julho - Agosto
A9: RREO - ANEXO VI (LRF, art 53, inciso III) | G9: 1
D10: SALDO
A11: DÍVIDA FISCAL LÍQUIDA | B11: Em 31/DEZ/2011 | D11: Em 30/JUN/2012 | F11: Em 31/AGO/2012
B12: (a) | D12: (b) | F12: (c)
A13: DÍVIDA CONSOLIDADA (I) | B13: 288426.6 | D13: 217668.43 | F13: 203918.95
A14: DEDUÇÕES (II) | B14: =B15+B16-B17 -> 2229467.3 | D14: =D15+D16-D17 -> 1606571.07 | F14: =F15+F16-F17 -> 2504639.67
A15: Disponibilidade de Caixa bruta | B15: 2307170.97 | D15: 1561771.8 | F15: 2469544.04
A16: Demais Haveres Financeiros | B16: 0 | D16: 44799.27 | F16: 35095.63
A17: (-) Restos a Pagar Processados (Exceto precatórios) | B17: 77703.67 | D17: 0 | F17: 0
A18: DÍVIDA CONSOLIDADA LÍQUIDA (III) = (I - II) | B18: =B13-B14 -> -1941040.7 | D18: =D13-D14 -> -1388902.64 | F18: =F13-F14 -> -2300720.72
A19: RECEITA DE PRIVATIZAÇÕES (IV) | B19: 0 | D19: 0 | F19: 0
A20: PASSIVOS RECONHECIDOS (V) | B20: 0 | D20: 217668.43 | F20: =F13 -> 203918.95
A21: DÍVIDA FISCAL LÍQUIDA (VI) = (III + IV - V) | B21: =B18+B19-B20 -> -1941040.7 | D21: =D18+D19-D20 -> -1606571.07 | F21: =F18+F19-F20 -> -2504639.67
B23: PERÍODO DE REFERÊNCIA
A24: RESULTADO NOMINAL | C24: No Bimestre | F24: Até o Bimestre
C25: (c-b) | F25: (c-a)
A26: VALOR | B26: =F21-D21 -> -898068.6 | E26: =F21-B21 -> -563598.97
A28: DISCRIMINAÇÃO DA META FISCAL | E28: VALOR CORRENTE
A30: META DE RESULTADO NOMINAL FIXADA NO ANEXO DE METAS FISCAIS DA LDO P/ O EXERCÍCIO DE REFERÊNCIA
E31: 0
A32: REGIME PREVIDENCIÁRIO
D33: SALDO
A34: DÍVIDA FISCAL LÍQUIDA PREVIDENCIÁRIA | B34: Em 31/Dez/2011 | D34: Em 30/Jun/2012 | F34: Em 31/Ago/2012
B35: (a) | D35: (b) | F35: (c)
A36: DÍVIDA CONSOLIDADA PREVIDENCIÁRIA (VII) | B36: NADA A DECLARAR | D36: NADA A DECLARAR | F36: NADA A DECLARAR
A37: Passivo Atuarial
A38: Demais Dívidas
A39: DEDUÇÕES (VIII)
A40: Disponibilidade de Caixa Bruta
A41: Investimentos
A42: Demais Haveres Financeiros
A43: (-) Restos a Pagar Processados
A44: DÍVIDA CONSOLIDADA LÍQUIDA PREVIDENCIÁRIA (IX) = (VII - VIII)
A45: PASSIVOS RECONHECIDOS (X)
A46: DÍVIDA FISCAL LÍQUIDA PREVIDENCIÁRIA (XI) = (IX - X)
A47: FONTE:
A48: Departamento de Finanças
A50: LUIZ CARLOS DOS REIS NONATO | B50: CESAR ROBERTO TOQUETON | E50: MISLENE NAGATE ALVES
A51: Prefeito Municipal | B51: CRC 1SP164476/O-7 | E51: Responsável pelo Controle Interno

Sheet Anexo VII - Primário (E, DF, M)
A3: MUNICÍPIO DE SANTO ANTONIO DO ARACANGUÁ
A4: RELATÓRIO RESUMIDO DA EXECUÇÃO ORÇAMENTÁRIA
A5: DEMONSTRATIVO DO RESULTADO PRIMÁRIO - ESTADOS, DISTRITO FEDERAL E MUNICÍPIOS
A6: ORÇAMENTOS FISCAL E DA SEGURIDADE SOCIAL
A7: PERÍODO:- Janeiro a Agosto de 2012 - BIMESTRE:- Julho - Agosto
A9: RREO - ANEXO VII (LRF, art 53, inciso III) | E9: 1
B10: PREVISÃO | C10: RECEITAS REALIZADAS
A11: RECEITAS PRIMÁRIAS | B11: ATUALIZADA | C11: No Bimestre | D11: Até o Bimestre/ | E11: Até o Bimestre/
D12: 2012 | E12: 2011
A13: RECEITAS PRIMÁRIAS CORRENTES (I) | B13: =B14+B20+B23+B26+B31 -> 31223000 | C13: =C14+C20+C23+C26+C31 -> 5498824.65 | D13: =D14+D20+D23+D26+D31 -> 20474406.26 | E13: =E14+E20+E23+E26+E31 -> 19505790.52
A14: Receitas Tributárias | B14: =B15+B16+B17+B18+B19 -> 2310000 | C14: =C15+C16+C17+C18+C19 -> 608159.23 | D14: =D15+D16+D17+D18+D19 -> 1138247.32 | E14: =E15+E16+E17+E18+E19 -> 1563249.58
A15: IPTU | B15: 815000 | C15: 253443.77 | D15: 285617.16 | E15: 281807.16
A16: ISS | B16: 800000 | C16: 91200.06 | D16: 292936.2 | E16: 850539.42
A17: ITBI | B17: 300000 | C17: 165579.83 | D17: 259964.81 | E17: 200811.78
A18: IRRF | B18: 310000 | C18: 56616.89 | D18: 230919.05 | E18: 189549.19
A19: Outras Receitas Tributárias | B19: 85000 | C19: 41318.68 | D19: 68810.1 | E19: 40542.03
A20: Receitas de Contribuições | B20: =B21+B22 -> 0 | C20: =C21+C22 -> 0 | D20: =D21+D22 -> 0 | E20: =E21+E22 -> 0
A21: Receitas Previdenciárias | B21: 0 | C21: 0 | D21: 0 | E21: 0
A22: Outras Receitas de Contribuições | B22: 0 | C22: 0 | D22: 0 | E22: 0
A23: Receita Patrimonial Líquida | B23: =B24-B25 -> 10000 | C23: =C24-C25 -> 1239 | D23: =D24-D25 -> 5120.83 | E23: =E24-E25 -> 4814.6
A24: Receita Patrimonial | B24: 237000 | C24: 16666.02 | D24: 91749.16 | E24: 164246.63
A25: (-) Aplicações Financeiras | B25: 227000 | C25: 15427.02 | D25: 86628.33 | E25: 159432.03
A26: Transferências Correntes | B26: =B27+B28+B29+B30 -> 28043000 | C26: =C27+C28+C29+C30 -> 4776393.77 | D26: =D27+D28+D29+D30 -> 18952667.28 | E26: =E27+E28+E29+E30 -> 17590757.42
A27: FPM | B27: 4960000 | C27: 598211.29 | D27: 2992480.71 | E27: 2878011.63
A28: ICMS | B28: 13600000 | C28: 2479115.79 | D28: 9468699.37 | E28: 8811491.73
A29: Convênios | B29: 217000 | C29: -62072.59 | D29: 136096 | E29: 200354
A30: Outras Transferências Correntes | B30: 9266000 | C30: 1761139.28 | D30: 6355391.2 | E30: 5700900.06
A31: Demais Receitas Correntes | B31: =B32+B33 -> 860000 | C31: =C32+C33 -> 113032.65 | D31: =D32+D33 -> 378370.83 | E31: =E32+E33 -> 346968.92
A32: Dívida Ativa | B32: 319000 | C32: 70846.79 | D32: 220905.91 | E32: 188090.59
A33: Diversas Receitas Correntes | B33: 541000 | C33: 42185.86 | D33: 157464.92 | E33: 158878.33
A34: RECEITAS DE CAPITAL (II) | B34: =B35+B36+B37+B38+B41 -> 152730 | C34: =C35+C36+C37+C38+C41 -> 1239956.13 | D34: =D35+D36+D37+D38+D41 -> 1334794.26 | E34: =E35+E36+E37+E38+E41 -> 630816.46
A35: Operações de Crédito (III) | B35: 0 | C35: 0 | D35: 0 | E35: 0
A36: Amortização de Empréstimos (IV) | B36: 50000 | C36: 10420.48 | D36: 38151.22 | E36: 33310.11
A37: Alienação de Bens (V) | B37: 102730 | C37: 102730 | D37: 0 | E37: 102730
A38: Transferências de Capital | B38: =B39+B40 -> 0 | C38: =C39+C40 -> 1126805.65 | D38: =D39+D40 -> 1296643.04 | E38: =E39+E40 -> 494776.35
A39: Convênios | B39: 0 | C39: 1126805.65 | D39: 1296643.04 | E39: 494776.35
A40: Outras Transferências de Capital | B40: 0 | C40: 0 | D40: 0 | E40: 0
A41: Outras Receitas de Capital | B41: 0 | C41: 0 | D41: 0 | E41: 0
A42: RECEITAS PRIMÁRIAS DE CAPITAL (VI) = (II - III - IV - V) | B42: =B34-B35-B36-B37 -> 0 | C42: =C34-C35-C36-C37 -> 1126805.65 | D42: =D34-D35-D36-D37 -> 1296643.04 | E42: =E34-E35-E36-E37 -> 494776.35
A43: RECEITA PRIMÁRIA TOTAL (VII) = (I + VI) | B43: =B13+B42 -> 31223000 | C43: =C13+C42 -> 6625630.3 | D43: =D13+D42 -> 21771049.3 | E43: =E13+E42 -> 20000566.87
B45: DOTAÇÃO | C45: DESPESAS LIQUIDADAS
A46: DESPESAS PRIMÁRIAS | B46: ATUALIZADA | C46: No Bimestre | D46: Até o Bimestre/ | E46: Até o Bimestre/
D47: 2012 | E47: 2011
A48: DESPESAS CORRENTES (VIII) | B48: =B49+B50+B51 -> 30150400 | C48: =C49+C50+C51 -> 5130466.66 | D48: =D49+D50+D51 -> 20276736.03 | E48: =E49+E50+E51 -> 16793421.99
A49: Pessoal e Encargos Sociais | B49: 16949400 | C49: 2969879.21 | D49: 11568678.37 | E49: 9828281.32
A50: Juros e Encargos da Dívida (IX) | B50: 0 | C50: 0 | D50: 0 | E50: 0
A51: Outras Despesas Correntes | B51: 13201000 | C51: 2160587.45 | D51: 8708057.66 | E51: 6965140.67
A52: DESPESAS PRIMÁRIAS CORRENTES (X) = (VIII - IX) | B52: =B48-B50 -> 30150400 | C52: =C48-C50 -> 5130466.66 | D52: =D48-D50 -> 20276736.03 | E52: =E48-E50 -> 16793421.99
A53: DESPESAS DE CAPITAL (XI) | B53: =B54+B55+B59 -> 5585862.45 | C53: =C54+C55+C59 -> 412921.46 | D53: =D54+D55+D59 -> 1500459.06 | E53: =E54+E55+E59 -> 1251543.66
A54: Investimentos | B54: 5445862.45 | C54: 399171.98 | D54: 1415951.41 | E54: 1105010.46
A55: Inversões Financeiras | B55: =B56+B57+B58 -> 10000 | C55: =C56+C57+C58 -> 0 | D55: =D56+D57+D58 -> 0 | E55: =E56+E57+E58 -> 7345.32
A56: Concessão de Empréstimos (XII) | B56: 0 | C56: 0 | D56: 0 | E56: 0
A57: Aquisição de Título de Capital já Integralizado (XIII) | B57: 0 | C57: 0 | D57: 0 | E57: 0
A58: Demais Inversões Financeiras | B58: 10000 | C58: 0 | D58: 0 | E58: 7345.32
A59: Amortização da Dívida (XIV) | B59: 130000 | C59: 13749.48 | D59: 84507.65 | E59: 139187.88
A60: DESPESAS PRIMÁRIAS DE CAPITAL (XV) = (XI - XII - XIII - XIV) | B60: =B53-B56-B57-B59 -> 5455862.45 | C60: =C53-C56-C57-C59 -> 399171.98 | D60: =D53-D56-D57-D59 -> 1415951.41 | E60: =E53-E56-E57-E59 -> 1112355.78
A61: RESERVA DE CONTINGÊNCIA (XVI) | B61: 0 | C61: 0 | D61: 0 | E61: 0
A62: RESERVA DO RPPS (XVII) | B62: 0 | C62: 0 | D62: 0 | E62: 0
A63: DESPESA PRIMÁRIA TOTAL (XVIII) = (X + XV + XVI + XVII) | B63: =B52+B60+B61+B62 -> 35606262.45 | C63: =C52+C60+C61+C62 -> 5529638.64 | D63: =D52+D60+D61+D62 -> 21692687.44 | E63: =E52+E60+E61+E62 -> 17905777.77
A65: RESULTADO PRIMÁRIO (XIX) = (VII - XVIII) | B65: =B43-B63 -> -4383262.45 | C65: =C43-C63 -> 1095991.66 | D65: =D43-D63 -> 78361.86 | E65: =E43-E63 -> 2094789.1
A67: SALDO DE EXERCÍCIOS ANTERIORES | B67: – | C67: – | D67: 1017188.16 | E67: -
A69: DISCRIMINAÇÃO DA META FISCAL | D69: VALOR CORRENTE
A71: META DE RESULTADO PRIMÁRIO FIXADA NO ANEXO DE METAS FISCAIS DA LDO P/ O EXERCÍCIO DE REFERÊNCIA | D71: 25000
A72: FONTE: Departamento de Finanças
A75: LUIZ CARLOS DOS REIS NONATO | B75: CESAR ROBERTO TOQUETON | D75: MISLENE NAGATE ALVES
A76: Prefeito Municipal | B76: CRC 1SP164476/O-7 | D76: Responsável pelo Controle Interno

Sheet Anexo IX - RP
A3: MUNICÍPIO DE SANTO ANTONIO DO ARACANGUÁ
A4: RELATÓRIO RESUMIDO DA EXECUÇÃO ORÇAMENTÁRIA
A5: DEMONSTRATIVO DOS RESTOS A PAGAR POR PODER E ÓRGÃO
A6: ORÇAMENTOS FISCAL E DA SEGURIDADE SOCIAL
A7: PERÍODO:- Janeiro a Agosto de 2012 - BIMESTRE:- Julho - Agosto
A9: RREO - ANEXO IX (LRF, art. 53, inciso V) | K9: 1
B10: RESTOS A PAGAR PROCESSADOS | G10: RESTOS A PAGAR NÃO PROCESSADOS
B11: Inscritos | G11: Inscritos
A12: PODER/ÓRGÃO | B12: Em | C12: Em 31 de | G12: Em | H12: Em 31 de
B13: Exercícios | C13: dezembro de | D13: Cancelados | E13: Pagos | F13: A Pagar | G13: Exercícios | H13: dezembro de | I13: Cancelados | J13: Pagos | K13: A Pagar
B14: Anteriores | C14: 2011 | G14: Anteriores | H14: 2011
A16: RESTOS A PAGAR (EXCETO INTRA-ORÇAMENTÁRIOS) (I) | B16: =B18+B22 -> 0 | C16: 77703.67 | D16: 0 | E16: 77703.67 | F16: 0 | G16: 661283.46 | H16: 504039.19 | I16: 14774.21 | J16: 616170.24 | K16: 534378.2
A18: EXECUTIVO | B18: =B19+B20 -> 0 | C18: 77257.6 | D18: 0 | E18: 77257.6 | F18: 0 | G18: 661283.46 | H18: 492981.07 | I18: 14774.21 | J18: 605112.12 | K18: 534378.2
A19: Prefeitura Municipal……………………………………………… | B19: 0 | C19: 77257.6 | D19: 0 | E19: 77257.6 | F19: =B19+C19-D19-E19 -> 0 | G19: 661283.46 | H19: 492981.07 | I19: 14774.21 | J19: 605112.12 | K19: =G19+H19-I19-J19 -> 534378.2
A22: LEGISLATIVO | B22: =B23 -> 0 | C22: 446.07 | D22: 0 | E22: 446.07 | F22: 0 | G22: 0 | H22: 11058.12 | I22: 0 | J22: 11058.12 | K22: 0
A23: Câmara Municipal………………………………………………… | B23: 0 | C23: 446.07 | D23: 0 | E23: 446.07 | F23: =B23+C23-D23-E23 -> 0 | G23: 0 | H23: 11058.12 | I23: 0 | J23: 11058.12 | K23: =G23+H23-I23-J23 -> 0
A25: RESTOS A PAGAR (INTRA-ORÇAMENTÁRIOS) (II) | B25: =B26+B27 -> 0 | C25: 0 | D25: 0 | E25: 0 | F25: 0 | G25: 0 | H25: 0 | I25: 0 | J25: 0 | K25: 0
A26: Executivo Municipal…………………………………………….. | B26: 0 | C26: 0 | D26: 0 | E26: 0 | F26: =B26+C26-D26-E26 -> 0 | G26: 0 | H26: 0 | I26: 0 | J26: 0 | K26: 0
A27: Legislativo Municipal……………………………………………. | B27: 0 | C27: 0 | D27: 0 | E27: 0 | F27: =B27+C27-D27-E27 -> 0 | G27: 0 | H27: 0 | I27: 0 | J27: 0 | K27: 0
A29: TOTAL (III) = (I + II) | B29: =B16+B25 -> 0 | C29: 77703.67 | D29: 0 | E29: 77703.67 | F29: 0 | G29: 661283.46 | H29: 504039.19 | I29: 14774.21 | J29: 616170.24 | K29: 534378.2
A30: FONTE: Departamento de Finanças
A32: LUIZ CARLOS DOS REIS NONATO | C32: CESAR ROBERTO TOQUETON | H32: MISLENE NAGATE ALVES
A33: Prefeito Municipal | C33: Contabilista - CRC 1SP164476/O-7 | H33: Responsável pelo Controle Interno
